[Event "Titled Tuesday Blitz June 22 2021"]
[White "Jobava, Baadur"]
[Black "Alavi, Sayed Javad"]
[WhiteFideId "13601520"]
[BlackFideId "12500607"]
[WhiteElo "2748"]
[BlackElo "2495"]
[Result "0-1"]
[Round "03"]
[TimeControl "180+1"]
[Date "2021.06.22"]
[WhiteClock "0:00:13"]
[BlackClock "0:00:05"]

1. d4 {[%clk 0:03:00]}  Nf6 {[%clk 0:02:53]} 2. Nc3 {[%clk 0:03:01]}  d5 {[%clk 0:02:52]} 3. Bf4 {[%clk 0:03:02]}  c6 {[%clk 0:02:52]} 4. e3 {[%clk 0:02:59]}  Bf5 {[%clk 0:02:51]} 5. f3 {[%clk 0:02:59]}  h6 {[%clk 0:02:47]} 6. Bd3 {[%clk 0:02:53]}  Bxd3 {[%clk 0:02:38]} 7. Qxd3 {[%clk 0:02:54]}  e6 {[%clk 0:02:39]} 8. Nge2 {[%clk 0:02:53]}  b5 {[%clk 0:02:27]} 9. O-O-O {[%clk 0:02:54]}  Qa5 {[%clk 0:02:24]} 10. b3 {[%clk 0:02:26]}  Nbd7 {[%clk 0:02:15]} 11. e4 {[%clk 0:02:20]}  b4 {[%clk 0:02:10]} 12. Na4 {[%clk 0:02:16]}  Nb6 {[%clk 0:02:10]} 13. Bc7 {[%clk 0:02:14]}  Kd7 {[%clk 0:01:56]} 14. Bxb6 {[%clk 0:01:54]}  axb6 {[%clk 0:01:57]} 15. Kd2 {[%clk 0:01:47]}  Kc7 {[%clk 0:01:34]} 16. e5 {[%clk 0:01:33]}  Nd7 {[%clk 0:01:34]} 17. Nc1 {[%clk 0:01:33]}  b5 {[%clk 0:01:28]} 18. Nc5 {[%clk 0:01:33]}  Bxc5 {[%clk 0:01:16]} 19. dxc5 {[%clk 0:01:34]}  Nxc5 {[%clk 0:01:13]} 20. Qe3 {[%clk 0:01:33]}  Nd7 {[%clk 0:01:12]} 21. Ke2 {[%clk 0:01:30]}  c5 {[%clk 0:01:00]} 22. Nd3 {[%clk 0:01:29]}  Qb6 {[%clk 0:00:59]} 23. Ra1 {[%clk 0:01:24]}  c4 {[%clk 0:00:56]} 24. Nxb4 {[%clk 0:01:19]}  Qxe3+ {[%clk 0:00:54]} 25. Kxe3 {[%clk 0:01:20]}  Nxe5 {[%clk 0:00:55]} 26. a4 {[%clk 0:01:18]}  bxa4 {[%clk 0:00:52]} 27. bxa4 {[%clk 0:01:19]}  Ra5 {[%clk 0:00:51]} 28. Ra2 {[%clk 0:01:16]}  Rha8 {[%clk 0:00:50]} 29. Rha1 {[%clk 0:01:15]}  Nd7 {[%clk 0:00:50]} 30. Kd4 {[%clk 0:01:05]}  Nb6 {[%clk 0:00:47]} 31. f4 {[%clk 0:00:58]}  Rxa4 {[%clk 0:00:45]} 32. Rxa4 {[%clk 0:00:58]}  Rxa4 {[%clk 0:00:45]} 33. Rb1 {[%clk 0:00:59]}  Kd6 {[%clk 0:00:33]} 34. g3 {[%clk 0:00:36]}  f6 {[%clk 0:00:27]} 35. Kc3 {[%clk 0:00:36]}  e5 {[%clk 0:00:23]} 36. fxe5+ {[%clk 0:00:37]}  fxe5 {[%clk 0:00:24]} 37. Na2 {[%clk 0:00:31]}  d4+ {[%clk 0:00:20]} 38. Kb2 {[%clk 0:00:32]}  Nd5 {[%clk 0:00:18]} 39. Rf1 {[%clk 0:00:32]}  Ra7 {[%clk 0:00:16]} 40. Rf8 {[%clk 0:00:32]}  Rb7+ {[%clk 0:00:15]} 41. Kc1 {[%clk 0:00:32]}  c3 {[%clk 0:00:15]} 42. Rd8+ {[%clk 0:00:29]}  Ke6 {[%clk 0:00:15]} 43. Re8+ {[%clk 0:00:22]}  Kf5 {[%clk 0:00:13]} 44. Rd8 {[%clk 0:00:22]}  Ke4 {[%clk 0:00:13]} 45. Ra8 {[%clk 0:00:17]}  Rb2 {[%clk 0:00:10]} 46. Kd1 {[%clk 0:00:14]}  Ne3+ {[%clk 0:00:10]} 47. Ke1 {[%clk 0:00:14]}  Nxc2+ {[%clk 0:00:08]} 48. Kd1 {[%clk 0:00:13]}  Ne3+ {[%clk 0:00:09]} 49. Ke1 {[%clk 0:00:13]}  Rxh2 {[%clk 0:00:07]} 50. Ra4 {[%clk 0:00:13]}  Nc2+ {[%clk 0:00:06]} 51. Kd1 {[%clk 0:00:12]}  Ne3+ {[%clk 0:00:07]} 52. Ke1 {[%clk 0:00:13]}  g5 {[%clk 0:00:07]} 53. Nxc3+ {[%clk 0:00:13]}  Kd3 {[%clk 0:00:06]} 54. Nb5 {[%clk 0:00:13]}  Re2# {[%clk 0:00:05]} 0-1


[Site "https://www.chess.com"]

[Event "Titled Tuesday Blitz June 22 2021"]
[White "Korchmar, Vasiliy"]
[Black "Zubov, Alexander"]
[WhiteFideId "24131750"]
[BlackFideId "14109409"]
[WhiteElo "2370"]
[BlackElo "2740"]
[Result "0-1"]
[Round "03"]
[TimeControl "180+1"]
[Date "2021.06.22"]
[WhiteClock "0:00:02"]
[BlackClock "0:00:06"]

1. d4 {[%clk 0:03:00]}  d5 {[%clk 0:02:58]} 2. Bf4 {[%clk 0:03:00]}  c5 {[%clk 0:02:58]} 3. e3 {[%clk 0:03:00]}  cxd4 {[%clk 0:02:57]} 4. exd4 {[%clk 0:02:59]}  Nc6 {[%clk 0:02:58]} 5. Nf3 {[%clk 0:02:59]}  Bg4 {[%clk 0:02:57]} 6. Bb5 {[%clk 0:02:54]}  e6 {[%clk 0:02:53]} 7. O-O {[%clk 0:02:48]}  Bd6 {[%clk 0:02:46]} 8. Bxd6 {[%clk 0:02:42]}  Qxd6 {[%clk 0:02:46]} 9. h3 {[%clk 0:02:39]}  Bh5 {[%clk 0:02:37]} 10. c4 {[%clk 0:02:35]}  Ne7 {[%clk 0:02:35]} 11. c5 {[%clk 0:02:33]}  Qf4 {[%clk 0:02:33]} 12. Nbd2 {[%clk 0:01:59]}  O-O {[%clk 0:02:29]} 13. Qa4 {[%clk 0:01:52]}  g5 {[%clk 0:01:46]} 14. Rfe1 {[%clk 0:01:43]}  g4 {[%clk 0:01:45]} 15. hxg4 {[%clk 0:01:44]}  Bxg4 {[%clk 0:01:45]} 16. Bd3 {[%clk 0:01:27]}  Kh8 {[%clk 0:01:35]} 17. Re3 {[%clk 0:01:24]}  Rg8 {[%clk 0:01:34]} 18. Kf1 {[%clk 0:01:09]}  Rg7 {[%clk 0:01:27]} 19. Rae1 {[%clk 0:00:52]}  Rag8 {[%clk 0:01:25]} 20. g3 {[%clk 0:00:47]}  Qh6 {[%clk 0:01:08]} 21. Nh4 {[%clk 0:00:35]}  Qh5 {[%clk 0:00:55]} 22. Ndf3 {[%clk 0:00:34]}  Bxf3 {[%clk 0:00:46]} 23. Nxf3 {[%clk 0:00:22]}  Rg4 {[%clk 0:00:34]} 24. Kg2 {[%clk 0:00:18]}  Nf5 {[%clk 0:00:32]} 25. Bxf5 {[%clk 0:00:17]}  Qxf5 {[%clk 0:00:31]} 26. Qd1 {[%clk 0:00:14]}  R8g6 {[%clk 0:00:26]} 27. Rh1 {[%clk 0:00:13]}  Rf6 {[%clk 0:00:24]} 28. Rh3 {[%clk 0:00:04]}  Re4 {[%clk 0:00:22]} 29. Rd3 {[%clk 0:00:02]}  a5 {[%clk 0:00:17]} 30. Qd2 {[%clk 0:00:02]}  Qg6 {[%clk 0:00:10]} 31. a3 {[%clk 0:00:02]}  Kg8 {[%clk 0:00:10]} 32. b4 {[%clk 0:00:02]}  axb4 {[%clk 0:00:09]} 33. axb4 {[%clk 0:00:03]}  Rg4 {[%clk 0:00:08]} 34. b5 {[%clk 0:00:04]}  Ne7 {[%clk 0:00:08]} 35. Ne5 {[%clk 0:00:04]}  Qg7 {[%clk 0:00:05]} 36. Nxg4 {[%clk 0:00:04]}  Qxg4 {[%clk 0:00:05]} 37. c6 {[%clk 0:00:04]}  bxc6 {[%clk 0:00:05]} 38. b6 {[%clk 0:00:05]}  c5 {[%clk 0:00:03]} 39. b7 {[%clk 0:00:05]}  Nc6 {[%clk 0:00:03]} 40. dxc5 {[%clk 0:00:05]}  Qc4 {[%clk 0:00:03]} 41. Qg5+ {[%clk 0:00:05]}  Rg6 {[%clk 0:00:04]} 42. Qe3 {[%clk 0:00:04]}  d4 {[%clk 0:00:04]} 43. Qf3 {[%clk 0:00:04]}  Qxc5 {[%clk 0:00:05]} 44. Rb3 {[%clk 0:00:04]}  Nb8 {[%clk 0:00:05]} 45. Qf4 {[%clk 0:00:04]}  e5 {[%clk 0:00:06]} 46. Qf3 {[%clk 0:00:03]}  Kg7 {[%clk 0:00:06]} 47. Rb1 {[%clk 0:00:03]}  Qc4 {[%clk 0:00:05]} 48. Qd1 {[%clk 0:00:03]}  Qd5+ {[%clk 0:00:05]} 49. Kg1 {[%clk 0:00:02]}  d3 {[%clk 0:00:05]} 50. Rh4 {[%clk 0:00:02]}  e4 {[%clk 0:00:05]} 51. Rf4 {[%clk 0:00:02]}  Rh6 {[%clk 0:00:06]} 0-1


[Site "https://www.chess.com"]

[Event "Titled Tuesday Blitz June 22 2021"]
[White "Levin, Guy"]
[Black "Bluebaum, Matthias"]
[WhiteFideId "2824213"]
[BlackFideId "24651516"]
[WhiteElo "1972"]
[BlackElo "2685"]
[Result "0-1"]
[Round "03"]
[TimeControl "180+1"]
[Date "2021.06.22"]
[WhiteClock "0:00:02"]
[BlackClock "0:00:12"]

1. Nf3 {[%clk 0:03:00]}  d5 {[%clk 0:02:59]} 2. g3 {[%clk 0:02:59]}  Bg4 {[%clk 0:02:59]} 3. Bg2 {[%clk 0:02:59]}  e6 {[%clk 0:03:00]} 4. O-O {[%clk 0:02:59]}  Nf6 {[%clk 0:02:58]} 5. c4 {[%clk 0:02:58]}  c6 {[%clk 0:02:59]} 6. b3 {[%clk 0:02:58]}  Nbd7 {[%clk 0:02:58]} 7. Bb2 {[%clk 0:02:58]}  Bd6 {[%clk 0:02:59]} 8. d4 {[%clk 0:02:57]}  O-O {[%clk 0:02:59]} 9. Nc3 {[%clk 0:02:57]}  Qe7 {[%clk 0:02:59]} 10. Qc2 {[%clk 0:02:57]}  Bf5 {[%clk 0:02:58]} 11. Qc1 {[%clk 0:02:57]}  h6 {[%clk 0:02:59]} 12. Nd2 {[%clk 0:02:54]}  Rad8 {[%clk 0:02:38]} 13. e4 {[%clk 0:02:51]}  dxe4 {[%clk 0:02:39]} 14. Ndxe4 {[%clk 0:02:51]}  Rfe8 {[%clk 0:02:30]} 15. Re1 {[%clk 0:02:34]}  Bb4 {[%clk 0:02:20]} 16. Nxf6+ {[%clk 0:02:25]}  Nxf6 {[%clk 0:02:18]} 17. a3 {[%clk 0:02:26]}  Ba5 {[%clk 0:02:18]} 18. Rd1 {[%clk 0:02:18]}  Rd7 {[%clk 0:02:08]} 19. h3 {[%clk 0:02:05]}  Red8 {[%clk 0:02:06]} 20. Qe3 {[%clk 0:02:04]}  Bb6 {[%clk 0:02:02]} 21. Na4 {[%clk 0:02:02]}  Bg6 {[%clk 0:01:36]} 22. Rd2 {[%clk 0:01:51]}  Rb8 {[%clk 0:00:54]} 23. Nxb6 {[%clk 0:01:40]}  axb6 {[%clk 0:00:55]} 24. Rad1 {[%clk 0:01:12]}  Rbd8 {[%clk 0:00:52]} 25. Qf4 {[%clk 0:00:56]}  b5 {[%clk 0:00:50]} 26. Qe3 {[%clk 0:00:37]}  bxc4 {[%clk 0:00:42]} 27. bxc4 {[%clk 0:00:38]}  Kh7 {[%clk 0:00:43]} 28. Re1 {[%clk 0:00:32]}  Kg8 {[%clk 0:00:31]} 29. Qb3 {[%clk 0:00:28]}  Qf8 {[%clk 0:00:27]} 30. Rde2 {[%clk 0:00:26]}  Bh5 {[%clk 0:00:24]} 31. Re5 {[%clk 0:00:25]}  Bg6 {[%clk 0:00:23]} 32. g4 {[%clk 0:00:24]}  Rc8 {[%clk 0:00:18]} 33. Bc3 {[%clk 0:00:19]}  Qd8 {[%clk 0:00:18]} 34. Bb2 {[%clk 0:00:19]}  Qc7 {[%clk 0:00:16]} 35. R5e3 {[%clk 0:00:17]}  Rcd8 {[%clk 0:00:16]} 36. Re5 {[%clk 0:00:17]}  Qc8 {[%clk 0:00:14]} 37. a4 {[%clk 0:00:15]}  Qa8 {[%clk 0:00:13]} 38. a5 {[%clk 0:00:14]}  Qa6 {[%clk 0:00:13]} 39. Rc1 {[%clk 0:00:13]}  Nh7 {[%clk 0:00:13]} 40. f4 {[%clk 0:00:11]}  Nf6 {[%clk 0:00:13]} 41. f5 {[%clk 0:00:11]}  exf5 {[%clk 0:00:14]} 42. gxf5 {[%clk 0:00:12]}  Bh5 {[%clk 0:00:14]} 43. Rce1 {[%clk 0:00:12]}  Kh7 {[%clk 0:00:14]} 44. Qc2 {[%clk 0:00:10]}  b6 {[%clk 0:00:11]} 45. axb6 {[%clk 0:00:10]}  Qxb6 {[%clk 0:00:12]} 46. Bc3 {[%clk 0:00:09]}  Rxd4 {[%clk 0:00:12]} 47. Bxd4 {[%clk 0:00:09]}  Qxd4+ {[%clk 0:00:13]} 48. Kh1 {[%clk 0:00:09]}  Qf4 {[%clk 0:00:14]} 49. R5e3 {[%clk 0:00:06]}  c5 {[%clk 0:00:12]} 50. Re5 {[%clk 0:00:06]}  Rd2 {[%clk 0:00:12]} 51. Qc3 {[%clk 0:00:04]}  Qf2 {[%clk 0:00:12]} 52. Rg1 {[%clk 0:00:02]}  Rc2 {[%clk 0:00:13]} 53. Qe3 {[%clk 0:00:02]}  Qh4 {[%clk 0:00:12]} 54. Bf1 {[%clk 0:00:02]}  Ng4 {[%clk 0:00:12]} 0-1


[Site "https://www.chess.com"]

[Event "Titled Tuesday Blitz June 22 2021"]
[White "Mamedyarov, Shakhriyar"]
[Black "Krivonosov, Oleg"]
[WhiteFideId "13401319"]
[BlackFideId "11600349"]
[WhiteElo "2716"]
[BlackElo "2469"]
[Result "1-0"]
[Round "03"]
[TimeControl "180+1"]
[Date "2021.06.22"]
[WhiteClock "0:02:08"]
[BlackClock "0:01:33"]

1. e4 {[%clk 0:03:00]}  e5 {[%clk 0:02:59]} 2. Nc3 {[%clk 0:02:58]}  Nf6 {[%clk 0:02:58]} 3. d4 {[%clk 0:02:58]}  exd4 {[%clk 0:02:53]} 4. Qxd4 {[%clk 0:02:59]}  Nc6 {[%clk 0:02:52]} 5. Qd3 {[%clk 0:02:59]}  Bb4 {[%clk 0:02:50]} 6. Bd2 {[%clk 0:02:59]}  O-O {[%clk 0:02:44]} 7. O-O-O {[%clk 0:02:58]}  Re8 {[%clk 0:02:42]} 8. Nge2 {[%clk 0:02:55]}  Ne5 {[%clk 0:02:30]} 9. Qg3 {[%clk 0:02:54]}  d6 {[%clk 0:02:21]} 10. Bg5 {[%clk 0:02:51]}  Bxc3 {[%clk 0:02:14]} 11. Nxc3 {[%clk 0:02:49]}  Ned7 {[%clk 0:01:54]} 12. f4 {[%clk 0:02:42]}  c6 {[%clk 0:01:47]} 13. e5 {[%clk 0:02:35]}  dxe5 {[%clk 0:01:39]} 14. fxe5 {[%clk 0:02:32]}  Nh5 {[%clk 0:01:36]} 15. Qh4 {[%clk 0:02:25]}  f6 {[%clk 0:01:35]} 16. Qxh5 {[%clk 0:02:15]}  fxg5 {[%clk 0:01:34]} 17. Bc4+ {[%clk 0:02:11]}  Kh8 {[%clk 0:01:33]} 18. e6 {[%clk 0:02:08]} 1-0


[Site "https://www.chess.com"]

[Event "Titled Tuesday Blitz June 22 2021"]
[White "Maximov, Dmitry"]
[Black "Dubov, Daniil"]
[WhiteFideId "14105659"]
[BlackFideId "24126055"]
[WhiteElo "2494"]
[BlackElo "2722"]
[Result "0-1"]
[Round "03"]
[TimeControl "180+1"]
[Date "2021.06.22"]
[WhiteClock "0:00:06"]
[BlackClock "0:00:28"]

1. e4 {[%clk 0:03:00]}  e5 {[%clk 0:02:59]} 2. Nf3 {[%clk 0:03:01]}  Nc6 {[%clk 0:03:00]} 3. Bb5 {[%clk 0:03:01]}  a6 {[%clk 0:03:00]} 4. Ba4 {[%clk 0:03:01]}  Nf6 {[%clk 0:03:00]} 5. O-O {[%clk 0:03:02]}  Be7 {[%clk 0:03:01]} 6. Re1 {[%clk 0:03:02]}  b5 {[%clk 0:03:02]} 7. Bb3 {[%clk 0:03:02]}  d6 {[%clk 0:03:02]} 8. c3 {[%clk 0:03:02]}  O-O {[%clk 0:03:00]} 9. h3 {[%clk 0:03:02]}  Nb8 {[%clk 0:03:00]} 10. d4 {[%clk 0:03:01]}  Nbd7 {[%clk 0:03:00]} 11. Nbd2 {[%clk 0:03:01]}  Bb7 {[%clk 0:03:00]} 12. Bc2 {[%clk 0:03:02]}  Re8 {[%clk 0:02:59]} 13. Nf1 {[%clk 0:03:02]}  Bf8 {[%clk 0:03:00]} 14. Ng3 {[%clk 0:03:03]}  g6 {[%clk 0:03:00]} 15. Bg5 {[%clk 0:03:03]}  Bg7 {[%clk 0:02:53]} 16. Qd2 {[%clk 0:03:03]}  c5 {[%clk 0:02:53]} 17. Rad1 {[%clk 0:02:57]}  exd4 {[%clk 0:02:48]} 18. cxd4 {[%clk 0:02:57]}  cxd4 {[%clk 0:02:48]} 19. Nxd4 {[%clk 0:02:52]}  Rc8 {[%clk 0:02:48]} 20. Bb3 {[%clk 0:02:26]}  Nc5 {[%clk 0:02:44]} 21. Bc2 {[%clk 0:02:21]}  Qb6 {[%clk 0:02:40]} 22. f3 {[%clk 0:02:06]}  Qc7 {[%clk 0:02:04]} 23. Bb1 {[%clk 0:01:53]}  d5 {[%clk 0:02:00]} 24. Bf4 {[%clk 0:01:53]}  Qb6 {[%clk 0:02:00]} 25. e5 {[%clk 0:01:34]}  Nfd7 {[%clk 0:01:59]} 26. Be3 {[%clk 0:01:21]}  Nxe5 {[%clk 0:01:57]} 27. b3 {[%clk 0:01:09]}  Qc7 {[%clk 0:01:50]} 28. Qf2 {[%clk 0:01:07]}  Ne6 {[%clk 0:01:42]} 29. f4 {[%clk 0:01:01]}  Nxd4 {[%clk 0:01:37]} 30. Bxd4 {[%clk 0:01:01]}  Nd7 {[%clk 0:01:37]} 31. Bxg7 {[%clk 0:01:00]}  Kxg7 {[%clk 0:01:38]} 32. f5 {[%clk 0:00:57]}  Nf6 {[%clk 0:01:38]} 33. fxg6 {[%clk 0:00:52]}  hxg6 {[%clk 0:01:35]} 34. Rf1 {[%clk 0:00:52]}  Re6 {[%clk 0:01:25]} 35. Rd4 {[%clk 0:00:51]}  Qe5 {[%clk 0:01:19]} 36. Rf4 {[%clk 0:00:48]}  Rcc6 {[%clk 0:01:03]} 37. Rf3 {[%clk 0:00:41]}  Rc3 {[%clk 0:00:58]} 38. Rxc3 {[%clk 0:00:31]}  Qxc3 {[%clk 0:00:58]} 39. Kh2 {[%clk 0:00:31]}  Qe5 {[%clk 0:00:56]} 40. Kh1 {[%clk 0:00:29]}  d4 {[%clk 0:00:55]} 41. Bf5 {[%clk 0:00:16]}  Rd6 {[%clk 0:00:48]} 42. Bd3 {[%clk 0:00:15]}  Qe3 {[%clk 0:00:48]} 43. Qxe3 {[%clk 0:00:08]}  dxe3 {[%clk 0:00:49]} 44. Be2 {[%clk 0:00:09]}  Rd2 {[%clk 0:00:45]} 45. a4 {[%clk 0:00:09]}  Ne4 {[%clk 0:00:39]} 46. Nxe4 {[%clk 0:00:09]}  Rxe2 {[%clk 0:00:36]} 47. Rf4 {[%clk 0:00:06]}  Re1+ {[%clk 0:00:32]} 48. Kh2 {[%clk 0:00:07]}  e2 {[%clk 0:00:32]} 49. Ng3 {[%clk 0:00:05]}  Rh1+ {[%clk 0:00:30]} 50. Kxh1 {[%clk 0:00:06]}  e1=Q+ {[%clk 0:00:31]} 51. Kh2 {[%clk 0:00:07]}  Qe5 {[%clk 0:00:30]} 52. Rg4 {[%clk 0:00:06]}  f5 {[%clk 0:00:28]} 0-1


[Site "https://www.chess.com"]

[Event "Titled Tuesday Blitz June 22 2021"]
[White "Perez Ponsa, Federico"]
[Black "Papasimakopoulos, Alexandros"]
[WhiteFideId "117927"]
[BlackFideId "4244125"]
[WhiteElo "2672"]
[BlackElo "2352"]
[Result "1-0"]
[Round "03"]
[TimeControl "180+1"]
[Date "2021.06.22"]
[WhiteClock "0:00:15"]
[BlackClock "0:00:24"]

1. d4 {[%clk 0:03:00]}  e6 {[%clk 0:02:59]} 2. e4 {[%clk 0:02:59]}  d5 {[%clk 0:02:59]} 3. exd5 {[%clk 0:03:00]}  exd5 {[%clk 0:02:59]} 4. Nf3 {[%clk 0:03:01]}  Bg4 {[%clk 0:02:59]} 5. h3 {[%clk 0:02:54]}  Bh5 {[%clk 0:02:59]} 6. Qe2+ {[%clk 0:02:54]}  Qe7 {[%clk 0:02:59]} 7. Be3 {[%clk 0:02:54]}  Nc6 {[%clk 0:02:59]} 8. Nc3 {[%clk 0:02:54]}  O-O-O {[%clk 0:02:59]} 9. g4 {[%clk 0:02:50]}  Bg6 {[%clk 0:02:59]} 10. O-O-O {[%clk 0:02:50]}  f6 {[%clk 0:02:59]} 11. Bg2 {[%clk 0:02:44]}  Qd7 {[%clk 0:02:59]} 12. a3 {[%clk 0:02:39]}  Kb8 {[%clk 0:02:50]} 13. Nd2 {[%clk 0:02:33]}  Nge7 {[%clk 0:02:49]} 14. Nb3 {[%clk 0:02:33]}  Nc8 {[%clk 0:02:49]} 15. Nxd5 {[%clk 0:02:25]}  Nb6 {[%clk 0:02:39]} 16. Nxb6 {[%clk 0:02:16]}  axb6 {[%clk 0:02:40]} 17. d5 {[%clk 0:02:16]}  Na7 {[%clk 0:02:26]} 18. f4 {[%clk 0:02:11]}  Bd6 {[%clk 0:02:24]} 19. f5 {[%clk 0:02:09]}  Bf7 {[%clk 0:02:24]} 20. Nd4 {[%clk 0:02:09]}  g6 {[%clk 0:02:16]} 21. Ne6 {[%clk 0:02:08]}  Rdg8 {[%clk 0:02:16]} 22. Be4 {[%clk 0:02:03]}  Nc8 {[%clk 0:02:03]} 23. Bd4 {[%clk 0:02:00]}  Be5 {[%clk 0:01:57]} 24. Bxe5 {[%clk 0:01:51]}  fxe5 {[%clk 0:01:58]} 25. Bf3 {[%clk 0:01:51]}  gxf5 {[%clk 0:01:53]} 26. gxf5 {[%clk 0:01:52]}  Rg3 {[%clk 0:01:40]} 27. Qxe5 {[%clk 0:01:47]}  Rhg8 {[%clk 0:01:40]} 28. Bg4 {[%clk 0:01:46]}  Rg2 {[%clk 0:01:38]} 29. Qe4 {[%clk 0:01:43]}  Rg3 {[%clk 0:01:36]} 30. Qf4 {[%clk 0:01:40]}  Qd6 {[%clk 0:01:36]} 31. Qxd6 {[%clk 0:01:31]}  Nxd6 {[%clk 0:01:37]} 32. Rdf1 {[%clk 0:01:29]}  h5 {[%clk 0:01:34]} 33. Bd1 {[%clk 0:01:25]}  Re3 {[%clk 0:01:26]} 34. h4 {[%clk 0:01:24]}  Re5 {[%clk 0:01:25]} 35. f6 {[%clk 0:01:15]}  Rxd5 {[%clk 0:01:20]} 36. Ng5 {[%clk 0:01:14]}  Bg6 {[%clk 0:01:20]} 37. Rhg1 {[%clk 0:01:09]}  Be8 {[%clk 0:01:15]} 38. Rg3 {[%clk 0:00:53]}  b5 {[%clk 0:00:55]} 39. Re3 {[%clk 0:00:50]}  Nf5 {[%clk 0:00:48]} 40. Rd3 {[%clk 0:00:30]}  Rxd3 {[%clk 0:00:42]} 41. cxd3 {[%clk 0:00:31]}  Nxh4 {[%clk 0:00:40]} 42. f7 {[%clk 0:00:30]}  Bxf7 {[%clk 0:00:40]} 43. Nxf7 {[%clk 0:00:31]}  Rg3 {[%clk 0:00:34]} 44. Ne5 {[%clk 0:00:29]}  Rg5 {[%clk 0:00:32]} 45. Rh1 {[%clk 0:00:24]}  Ng2 {[%clk 0:00:25]} 46. Rxh5 {[%clk 0:00:24]}  Rxh5 {[%clk 0:00:22]} 47. Bxh5 {[%clk 0:00:23]}  Nf4 {[%clk 0:00:22]} 48. Bf3 {[%clk 0:00:23]}  c6 {[%clk 0:00:22]} 49. Kd2 {[%clk 0:00:23]}  Kc7 {[%clk 0:00:23]} 50. Ke3 {[%clk 0:00:23]}  Ne6 {[%clk 0:00:22]} 51. d4 {[%clk 0:00:21]}  Kd6 {[%clk 0:00:22]} 52. Nd3 {[%clk 0:00:19]}  Kc7 {[%clk 0:00:19]} 53. Nc5 {[%clk 0:00:18]}  Ng7 {[%clk 0:00:18]} 54. Bg4 {[%clk 0:00:18]}  Ne8 {[%clk 0:00:19]} 55. Ne4 {[%clk 0:00:17]}  Kb6 {[%clk 0:00:17]} 56. Kf4 {[%clk 0:00:16]}  Nc7 {[%clk 0:00:18]} 57. Ke5 {[%clk 0:00:15]}  b4 {[%clk 0:00:18]} 58. axb4 {[%clk 0:00:14]}  Nd5 {[%clk 0:00:18]} 59. b5 {[%clk 0:00:12]}  Kxb5 {[%clk 0:00:18]} 60. Nc3+ {[%clk 0:00:11]}  Nxc3 {[%clk 0:00:18]} 61. bxc3 {[%clk 0:00:12]}  Kc4 {[%clk 0:00:18]} 62. Bc8 {[%clk 0:00:12]}  c5 {[%clk 0:00:19]} 63. d5 {[%clk 0:00:13]}  b6 {[%clk 0:00:19]} 64. d6 {[%clk 0:00:12]}  Kxc3 {[%clk 0:00:20]} 65. d7 {[%clk 0:00:13]}  b5 {[%clk 0:00:21]} 66. d8=Q {[%clk 0:00:14]}  c4 {[%clk 0:00:22]} 67. Qd4+ {[%clk 0:00:14]}  Kb3 {[%clk 0:00:22]} 68. Be6 {[%clk 0:00:15]}  b4 {[%clk 0:00:23]} 69. Qxc4+ {[%clk 0:00:15]}  Ka3 {[%clk 0:00:24]} 70. Qb3# {[%clk 0:00:15]} 1-0


[Site "https://www.chess.com"]

[Event "Titled Tuesday Blitz June 22 2021"]
[White "Rojas Alarcon, Julian Antonio"]
[Black "Eljanov, Pavel"]
[WhiteFideId "5107407"]
[BlackFideId "14102951"]
[WhiteElo "2333"]
[BlackElo "2602"]
[Result "1-0"]
[Round "03"]
[TimeControl "180+1"]
[Date "2021.06.22"]
[WhiteClock "0:00:26"]
[BlackClock "0:00:27"]

1. c4 {[%clk 0:03:00]}  Nf6 {[%clk 0:02:57]} 2. Nc3 {[%clk 0:03:00]}  e5 {[%clk 0:02:57]} 3. g3 {[%clk 0:03:00]}  Bb4 {[%clk 0:02:56]} 4. Bg2 {[%clk 0:03:00]}  O-O {[%clk 0:02:56]} 5. Nf3 {[%clk 0:02:51]}  e4 {[%clk 0:02:56]} 6. Nd4 {[%clk 0:02:51]}  Re8 {[%clk 0:02:55]} 7. O-O {[%clk 0:02:50]}  Nc6 {[%clk 0:02:54]} 8. Nc2 {[%clk 0:02:46]}  Bxc3 {[%clk 0:02:47]} 9. dxc3 {[%clk 0:02:45]}  h6 {[%clk 0:02:41]} 10. Ne3 {[%clk 0:02:37]}  d6 {[%clk 0:02:38]} 11. b3 {[%clk 0:02:37]}  b6 {[%clk 0:02:27]} 12. Nd5 {[%clk 0:02:32]}  Bf5 {[%clk 0:01:48]} 13. Bf4 {[%clk 0:02:15]}  Ne5 {[%clk 0:01:36]} 14. h3 {[%clk 0:02:03]}  Ng6 {[%clk 0:00:52]} 15. Be3 {[%clk 0:01:58]}  c5 {[%clk 0:00:48]} 16. Qd2 {[%clk 0:01:55]}  Nxd5 {[%clk 0:00:45]} 17. Qxd5 {[%clk 0:01:52]}  Re5 {[%clk 0:00:45]} 18. Qd2 {[%clk 0:01:52]}  Qe7 {[%clk 0:00:42]} 19. Rad1 {[%clk 0:01:49]}  Rd8 {[%clk 0:00:43]} 20. Bf4 {[%clk 0:01:41]}  Nxf4 {[%clk 0:00:42]} 21. Qxf4 {[%clk 0:01:42]}  g5 {[%clk 0:00:41]} 22. Qe3 {[%clk 0:01:41]}  Bg6 {[%clk 0:00:40]} 23. Rd2 {[%clk 0:01:38]}  Re6 {[%clk 0:00:34]} 24. Rfd1 {[%clk 0:01:38]}  Kg7 {[%clk 0:00:35]} 25. g4 {[%clk 0:01:32]}  a5 {[%clk 0:00:34]} 26. Rd5 {[%clk 0:01:31]}  a4 {[%clk 0:00:32]} 27. Qg3 {[%clk 0:01:24]}  a3 {[%clk 0:00:28]} 28. Qe3 {[%clk 0:01:10]}  Qf6 {[%clk 0:00:29]} 29. Qg3 {[%clk 0:01:09]}  e3 {[%clk 0:00:29]} 30. Rc1 {[%clk 0:00:55]}  Qxf2+ {[%clk 0:00:27]} 31. Qxf2 {[%clk 0:00:56]}  exf2+ {[%clk 0:00:28]} 32. Kxf2 {[%clk 0:00:56]}  Kf6 {[%clk 0:00:25]} 33. Bf3 {[%clk 0:00:56]}  Ke7 {[%clk 0:00:25]} 34. Rcd1 {[%clk 0:00:47]}  Re5 {[%clk 0:00:25]} 35. Rxe5+ {[%clk 0:00:42]}  dxe5 {[%clk 0:00:26]} 36. Rxd8 {[%clk 0:00:42]}  Kxd8 {[%clk 0:00:27]} 37. e4 {[%clk 0:00:43]}  Ke7 {[%clk 0:00:27]} 38. Ke3 {[%clk 0:00:43]}  f6 {[%clk 0:00:27]} 39. Be2 {[%clk 0:00:44]}  Kd6 {[%clk 0:00:28]} 40. Bf3 {[%clk 0:00:44]}  Bf7 {[%clk 0:00:28]} 41. Be2 {[%clk 0:00:44]}  Be6 {[%clk 0:00:29]} 42. Bd3 {[%clk 0:00:44]}  h5 {[%clk 0:00:28]} 43. Be2 {[%clk 0:00:44]}  b5 {[%clk 0:00:28]} 44. gxh5 {[%clk 0:00:36]}  bxc4 {[%clk 0:00:28]} 45. Bxc4 {[%clk 0:00:32]}  Bxc4 {[%clk 0:00:26]} 46. bxc4 {[%clk 0:00:33]}  Ke7 {[%clk 0:00:27]} 47. Kf3 {[%clk 0:00:25]}  Kf7 {[%clk 0:00:27]} 48. Kg4 {[%clk 0:00:25]}  Kg7 {[%clk 0:00:26]} 49. Kf5 {[%clk 0:00:26]}  Kh6 {[%clk 0:00:27]} 50. Kxf6 {[%clk 0:00:26]}  Kxh5 {[%clk 0:00:27]} 51. Kxe5 {[%clk 0:00:26]} 1-0


[Site "https://www.chess.com"]